[Event "Early-Titled-Tuesday-Blitz-March-12-2024"]
[Site "Chess.com"]
[Date "2024.03.12"]
[Round "1"]
[White "SuperPower2011"]
[Black "Rainbow2014"]
[Result "1-0"]
[WhiteElo "2811"]
[BlackElo "2447"]
[TimeControl "180+1"]
[EndTime "8:06:07 PDT"]
[Termination "SuperPower2011 won on time"]

1. d4 {[%clk 0:03:00.9]} 1... Nf6 {[%clk 0:02:54.6]} 2. c4 {[%clk 0:03:00.3]}
2... e6 {[%clk 0:02:51]} 3. Nc3 {[%clk 0:03:00.1]} 3... Bb4 {[%clk 0:02:49.8]}
4. e3 {[%clk 0:02:59.9]} 4... O-O {[%clk 0:02:44.4]} 5. Bd3 {[%clk 0:02:59.1]}
5... c5 {[%clk 0:02:41.7]} 6. Ne2 {[%clk 0:02:57]} 6... cxd4 {[%clk 0:02:40.8]}
7. exd4 {[%clk 0:02:56.9]} 7... d5 {[%clk 0:02:41.5]} 8. c5 {[%clk 0:02:46.8]}
8... b6 {[%clk 0:02:32.8]} 9. a3 {[%clk 0:02:40.5]} 9... Bxc3+ {[%clk
0:02:30.4]} 10. Nxc3 {[%clk 0:02:41.4]} 10... bxc5 {[%clk 0:02:30.2]} 11. dxc5
{[%clk 0:02:42.3]} 11... e5 {[%clk 0:02:07.2]} 12. Bg5 {[%clk 0:02:35.4]} 12...
Be6 {[%clk 0:01:52.9]} 13. O-O {[%clk 0:02:25.3]} 13... h6 {[%clk 0:01:46]} 14.
Bh4 {[%clk 0:02:23.4]} 14... g5 {[%clk 0:01:19.3]} 15. Bg3 {[%clk 0:02:23.7]}
15... e4 {[%clk 0:01:19.6]} 16. Bc2 {[%clk 0:02:18.7]} 16... Bf5 {[%clk
0:00:57.9]} 17. Bd6 {[%clk 0:01:58.8]} 17... Be6 {[%clk 0:00:41.1]} 18. f3
{[%clk 0:01:19.5]} 18... e3 {[%clk 0:00:30.8]} 19. Qd3 {[%clk 0:01:18]} 19...
Nc6 {[%clk 0:00:28.6]} 20. Ne2 {[%clk 0:01:08.8]} 20... d4 {[%clk 0:00:14.8]}
21. Nxd4 {[%clk 0:01:03.7]} 21... Nxd4 {[%clk 0:00:15.7]} 22. Qxd4 {[%clk
0:01:04.4]} 22... e2 {[%clk 0:00:13.5]} 23. Rfe1 {[%clk 0:01:04.1]} 23... Nd5
{[%clk 0:00:03]} 24. Qd3 {[%clk 0:00:53.9]} 1-0

[Event "Early-Titled-Tuesday-Blitz-March-12-2024"]
[Site "Chess.com"]
[Date "2024.03.12"]
[Round "1"]
[White "Flawless_Fighter"]
[Black "AttilaTurzo"]
[Result "1-0"]
[WhiteElo "2836"]
[BlackElo "2466"]
[TimeControl "180+1"]
[EndTime "8:06:08 PDT"]
[Termination "Flawless_Fighter won on time"]

1. e4 {[%clk 0:02:59.4]} 1... c5 {[%clk 0:02:59.1]} 2. Nf3 {[%clk 0:02:57.2]}
2... d6 {[%clk 0:02:59.7]} 3. Bb5+ {[%clk 0:02:54.5]} 3... Nd7 {[%clk
0:02:58.1]} 4. O-O {[%clk 0:02:54.1]} 4... Nf6 {[%clk 0:02:57.8]} 5. Re1 {[%clk
0:02:54]} 5... a6 {[%clk 0:02:56.9]} 6. Bf1 {[%clk 0:02:54.5]} 6... e5 {[%clk
0:02:56]} 7. c3 {[%clk 0:02:54.4]} 7... Be7 {[%clk 0:02:55.7]} 8. d4 {[%clk
0:02:54.4]} 8... O-O {[%clk 0:02:54.1]} 9. h3 {[%clk 0:02:52.9]} 9... b6 {[%clk
0:02:47.7]} 10. Bg5 {[%clk 0:02:49.7]} 10... Bb7 {[%clk 0:02:45.4]} 11. Nbd2
{[%clk 0:02:50.2]} 11... h6 {[%clk 0:02:44.6]} 12. Bh4 {[%clk 0:02:47.7]} 12...
Nh7 {[%clk 0:02:37.5]} 13. Bg3 {[%clk 0:02:45.1]} 13... Bf6 {[%clk 0:02:34.1]}
14. dxe5 {[%clk 0:02:43.9]} 14... Bxe5 {[%clk 0:02:25]} 15. Nxe5 {[%clk
0:02:41.9]} 15... dxe5 {[%clk 0:02:21.9]} 16. Nc4 {[%clk 0:02:40.2]} 16... Qe7
{[%clk 0:02:07.1]} 17. a4 {[%clk 0:02:28.7]} 17... Bc6 {[%clk 0:02:02.2]} 18.
Qc2 {[%clk 0:02:20.9]} 18... Rfd8 {[%clk 0:01:58.4]} 19. f3 {[%clk 0:02:15.2]}
19... Nhf8 {[%clk 0:01:55.1]} 20. Ne3 {[%clk 0:02:15]} 20... g6 {[%clk
0:01:52.9]} 21. Red1 {[%clk 0:02:14.3]} 21... Ne6 {[%clk 0:01:50.2]} 22. Nd5
{[%clk 0:02:11]} 22... Qg5 {[%clk 0:01:41.2]} 23. Bf2 {[%clk 0:02:06.5]} 23...
Bxd5 {[%clk 0:01:31]} 24. exd5 {[%clk 0:02:04]} 24... Nf4 {[%clk 0:01:29.7]} 25.
Kh1 {[%clk 0:02:01.4]} 25... Nf6 {[%clk 0:01:13.4]} 26. d6 {[%clk 0:01:54.5]}
26... N6d5 {[%clk 0:01:01.1]} 27. Qe4 {[%clk 0:01:43.6]} 27... Nf6 {[%clk
0:00:28.1]} 28. Qe1 {[%clk 0:01:37.4]} 28... a5 {[%clk 0:00:23.5]} 29. Rd2
{[%clk 0:01:34.3]} 29... N6h5 {[%clk 0:00:18.8]} 30. Bh4 {[%clk 0:01:33.1]}
30... Qf5 {[%clk 0:00:14.5]} 31. g4 {[%clk 0:01:29.1]} 31... Qe6 {[%clk
0:00:12.4]} 32. Bxd8 {[%clk 0:01:29.1]} 32... Rxd8 {[%clk 0:00:12.1]} 33. gxh5
{[%clk 0:01:29.7]} 33... Nxh3 {[%clk 0:00:10.6]} 34. Bxh3 {[%clk 0:01:19.2]} 1-0

[Event "Early-Titled-Tuesday-Blitz-March-12-2024"]
[Site "Chess.com"]
[Date "2024.03.12"]
[Round "1"]
[White "DonkyDonkyDonkey"]
[Black "Triumphmate"]
[Result "1/2-1/2"]
[WhiteElo "2893"]
[BlackElo "2514"]
[TimeControl "180+1"]
[EndTime "8:06:09 PDT"]
[Termination "Game drawn by repetition"]

1. d4 {[%clk 0:02:59.8]} 1... d5 {[%clk 0:02:59.3]} 2. Nc3 {[%clk 0:02:59.2]}
2... f5 {[%clk 0:02:55.1]} 3. Bf4 {[%clk 0:02:56.6]} 3... e6 {[%clk 0:02:55.3]}
4. Nb5 {[%clk 0:02:53.7]} 4... Na6 {[%clk 0:02:54.2]} 5. e3 {[%clk 0:02:54.4]}
5... Nf6 {[%clk 0:02:51.6]} 6. Nf3 {[%clk 0:02:54.6]} 6... c6 {[%clk 0:02:51.6]}
7. Nc3 {[%clk 0:02:54.9]} 7... Nb8 {[%clk 0:02:49.1]} 8. Ne5 {[%clk 0:02:55.2]}
8... Bd6 {[%clk 0:02:49.1]} 9. Bd3 {[%clk 0:02:54.6]} 9... O-O {[%clk
0:02:49.7]} 10. O-O {[%clk 0:02:54.8]} 10... Qc7 {[%clk 0:02:50.1]} 11. Bg3
{[%clk 0:02:52.6]} 11... Nbd7 {[%clk 0:02:49.6]} 12. f4 {[%clk 0:02:52]} 12...
Ne4 {[%clk 0:02:49.7]} 13. Nxe4 {[%clk 0:02:52.1]} 13... fxe4 {[%clk 0:02:49.6]}
14. Be2 {[%clk 0:02:52.6]} 14... b6 {[%clk 0:02:48.1]} 15. c3 {[%clk 0:02:51.4]}
15... Bb7 {[%clk 0:02:45.4]} 16. Bg4 {[%clk 0:02:50.4]} 16... Rae8 {[%clk
0:02:43.4]} 17. Bh3 {[%clk 0:02:47.3]} 17... Bxe5 {[%clk 0:02:42.1]} 18. fxe5
{[%clk 0:02:41]} 18... Ba6 {[%clk 0:02:42.4]} 19. Rxf8+ {[%clk 0:02:39]} 19...
Nxf8 {[%clk 0:02:43.3]} 20. Bh4 {[%clk 0:02:27.6]} 20... Ng6 {[%clk 0:02:37.7]}
21. Qh5 {[%clk 0:02:24.9]} 21... Qf7 {[%clk 0:02:33.2]} 22. g3 {[%clk
0:02:08.4]} 22... Nxh4 {[%clk 0:02:26.2]} 23. Qxf7+ {[%clk 0:02:06.8]} 23...
Kxf7 {[%clk 0:02:27.1]} 24. gxh4 {[%clk 0:02:07.6]} 24... Ke7 {[%clk 0:02:24.1]}
25. a4 {[%clk 0:02:05.6]} 25... Bd3 {[%clk 0:02:19.5]} 26. Bf1 {[%clk
0:01:56.8]} 26... Bxf1 {[%clk 0:02:18.9]} 27. Rxf1 {[%clk 0:01:56]} 27... Rf8
{[%clk 0:02:17.6]} 28. Rxf8 {[%clk 0:01:48.8]} 28... Kxf8 {[%clk 0:02:18.5]} 29.
Kg2 {[%clk 0:01:48.2]} 29... Kf7 {[%clk 0:02:11.3]} 30. Kg3 {[%clk 0:01:47.8]}
30... Kg6 {[%clk 0:02:08.2]} 31. Kg4 {[%clk 0:01:47.9]} 31... h5+ {[%clk
0:02:02.7]} 32. Kf4 {[%clk 0:01:48.1]} 32... Kh6 {[%clk 0:02:02.5]} 33. c4
{[%clk 0:01:24.6]} 33... a5 {[%clk 0:01:43.7]} 34. c5 {[%clk 0:01:05.9]} 34...
bxc5 {[%clk 0:01:38.9]} 35. dxc5 {[%clk 0:01:06.8]} 35... Kg6 {[%clk 0:01:34.6]}
36. b3 {[%clk 0:00:45.9]} 36... Kh6 {[%clk 0:01:19.9]} 37. Kg3 {[%clk
0:00:43.9]} 37... Kg6 {[%clk 0:01:13.1]} 38. Kf4 {[%clk 0:00:28.4]} 38... Kh6
{[%clk 0:01:10.5]} 39. Kg3 {[%clk 0:00:28.7]} 39... Kg6 {[%clk 0:01:11.1]} 40.
Kf4 {[%clk 0:00:29.1]} 1/2-1/2

[Event "Early-Titled-Tuesday-Blitz-March-12-2024"]
[Site "Chess.com"]
[Date "2024.03.12"]
[Round "1"]
[White "Herman-NY"]
[Black "Oleksandr_Bortnyk"]
[Result "0-1"]
[WhiteElo "2552"]
[BlackElo "3016"]
[TimeControl "180+1"]
[EndTime "8:06:11 PDT"]
[Termination "Oleksandr_Bortnyk won by resignation"]

1. e4 {[%clk 0:03:00.9]} 1... Nf6 {[%clk 0:02:59.2]} 2. e5 {[%clk 0:03:00.7]}
2... Nd5 {[%clk 0:02:59.5]} 3. d4 {[%clk 0:03:01.5]} 3... d6 {[%clk 0:02:59.8]}
4. c4 {[%clk 0:03:02.2]} 4... Nb6 {[%clk 0:03:00.1]} 5. f4 {[%clk 0:03:02.9]}
5... dxe5 {[%clk 0:03:00.5]} 6. fxe5 {[%clk 0:03:03.8]} 6... Bf5 {[%clk
0:03:00.7]} 7. Nc3 {[%clk 0:03:03.9]} 7... e6 {[%clk 0:03:01]} 8. Be3 {[%clk
0:03:03.8]} 8... Bb4 {[%clk 0:03:00.9]} 9. Nf3 {[%clk 0:02:55.3]} 9... c5 {[%clk
0:03:00.4]} 10. a3 {[%clk 0:02:53.7]} 10... Bxc3+ {[%clk 0:02:57.8]} 11. bxc3
{[%clk 0:02:53.6]} 11... Nc6 {[%clk 0:02:57.5]} 12. Be2 {[%clk 0:02:45.3]} 12...
O-O {[%clk 0:02:54.9]} 13. O-O {[%clk 0:02:45.2]} 13... Na5 {[%clk 0:02:52.1]}
14. Nd2 {[%clk 0:02:44.5]} 14... Bg6 {[%clk 0:02:51.2]} 15. Rf4 {[%clk
0:02:33.3]} 15... Rc8 {[%clk 0:02:42.1]} 16. Qf1 {[%clk 0:02:32.8]} 16... Qc7
{[%clk 0:02:27.1]} 17. Rc1 {[%clk 0:02:26.7]} 17... cxd4 {[%clk 0:02:23.8]} 18.
cxd4 {[%clk 0:02:27]} 18... Nd5 {[%clk 0:02:22.7]} 19. Rf3 {[%clk 0:02:25.1]}
19... Nxe3 {[%clk 0:01:53.9]} 20. Rxe3 {[%clk 0:02:25.4]} 20... Rfd8 {[%clk
0:01:53.2]} 21. Qf4 {[%clk 0:02:03.7]} 21... Qb6 {[%clk 0:01:46.4]} 22. Nf3
{[%clk 0:02:03.1]} 22... Qb2 {[%clk 0:01:41.7]} 23. Rcc3 {[%clk 0:01:59.1]}
23... b5 {[%clk 0:01:15.3]} 24. c5 {[%clk 0:01:59.4]} 24... Nc6 {[%clk
0:01:13.4]} 25. Kf2 {[%clk 0:01:29.6]} 25... a6 {[%clk 0:01:09.9]} 26. Rb3
{[%clk 0:00:24.7]} 26... Qa1 {[%clk 0:01:08.5]} 27. Rec3 {[%clk 0:00:19.1]}
27... Na5 {[%clk 0:00:52.7]} 28. Rc1 {[%clk 0:00:16]} 28... Qa2 {[%clk
0:00:53.3]} 29. Rbc3 {[%clk 0:00:09.3]} 29... Qb2 {[%clk 0:00:53.1]} 30. R1c2
{[%clk 0:00:08.3]} 30... Bxc2 {[%clk 0:00:52.8]} 0-1

[Event "Early-Titled-Tuesday-Blitz-March-12-2024"]
[Site "Chess.com"]
[Date "2024.03.12"]
[Round "1"]
[White "Boorchess"]
[Black "TigrVShlyape"]
[Result "0-1"]
[WhiteElo "2524"]
[BlackElo "2917"]
[TimeControl "180+1"]
[EndTime "8:06:11 PDT"]
[Termination "TigrVShlyape won on time"]

1. d4 {[%clk 0:03:00.9]} 1... f5 {[%clk 0:02:56.6]} 2. c4 {[%clk 0:02:56.2]}
2... Nf6 {[%clk 0:02:55.8]} 3. Nc3 {[%clk 0:02:56.3]} 3... e6 {[%clk 0:02:56.1]}
4. a3 {[%clk 0:02:56]} 4... g6 {[%clk 0:02:48.2]} 5. g3 {[%clk 0:02:52.8]} 5...
Bg7 {[%clk 0:02:48.2]} 6. Bg2 {[%clk 0:02:53]} 6... O-O {[%clk 0:02:48.3]} 7. e3
{[%clk 0:02:50.7]} 7... d6 {[%clk 0:02:46.2]} 8. b4 {[%clk 0:02:48.6]} 8... e5
{[%clk 0:02:42.6]} 9. Nge2 {[%clk 0:02:46.7]} 9... e4 {[%clk 0:02:41.1]} 10. Bb2
{[%clk 0:02:43.1]} 10... c6 {[%clk 0:02:35.3]} 11. Qb3 {[%clk 0:02:37.5]} 11...
Be6 {[%clk 0:02:30.2]} 12. d5 {[%clk 0:02:30.7]} 12... Bf7 {[%clk 0:02:28]} 13.
Nf4 {[%clk 0:02:09.1]} 13... Qe7 {[%clk 0:02:23.8]} 14. O-O-O {[%clk 0:01:52.7]}
14... Nbd7 {[%clk 0:02:21.7]} 15. Rd2 {[%clk 0:01:37.1]} 15... Nb6 {[%clk
0:02:01.2]} 16. Rhd1 {[%clk 0:01:31]} 16... cxd5 {[%clk 0:01:59.5]} 17. Ncxd5
{[%clk 0:01:20.4]} 17... Nfxd5 {[%clk 0:01:58.6]} 18. Bxg7 {[%clk 0:01:09.9]}
18... Kxg7 {[%clk 0:01:57.3]} 19. cxd5 {[%clk 0:01:00.2]} 19... Rfc8+ {[%clk
0:01:55.9]} 20. Kb1 {[%clk 0:00:56.3]} 20... Qe5 {[%clk 0:01:54.4]} 21. Rd4
{[%clk 0:00:51.5]} 21... Rc7 {[%clk 0:01:30.3]} 22. Ne6+ {[%clk 0:00:44.5]}
22... Bxe6 {[%clk 0:01:30]} 23. dxe6 {[%clk 0:00:44.7]} 23... d5 {[%clk
0:01:26.1]} 24. f3 {[%clk 0:00:21.9]} 24... Rac8 {[%clk 0:01:20.9]} 25. fxe4
{[%clk 0:00:18.3]} 25... Rc3 {[%clk 0:01:19.3]} 26. Qb2 {[%clk 0:00:17.3]} 26...
Na4 {[%clk 0:01:16.4]} 27. Qa2 {[%clk 0:00:16.1]} 27... Rxe3 {[%clk 0:01:13.9]}
28. Ka1 {[%clk 0:00:13.5]} 28... fxe4 {[%clk 0:01:11.6]} 29. Qxd5 {[%clk
0:00:11.6]} 29... Rxa3+ {[%clk 0:01:11.1]} 30. Kb1 {[%clk 0:00:09.8]} 30... Nc3+
{[%clk 0:01:11.4]} 31. Kb2 {[%clk 0:00:10.1]} 31... Nxd5 {[%clk 0:01:11.6]} 32.
Kxa3 {[%clk 0:00:08.8]} 32... Ne3 {[%clk 0:01:08.1]} 33. Rd7+ {[%clk 0:00:08]}
33... Kh6 {[%clk 0:01:08.3]} 0-1

[Event "Early-Titled-Tuesday-Blitz-March-12-2024"]
[Site "Chess.com"]
[Date "2024.03.12"]
[Round "1"]
[White "NMJeevanK"]
[Black "vaniavindy"]
[Result "1-0"]
[WhiteElo "2602"]
[BlackElo "2133"]
[TimeControl "180+1"]
[EndTime "8:06:21 PDT"]
[Termination "NMJeevanK won on time"]

1. e4 {[%clk 0:02:59.1]} 1... c6 {[%clk 0:02:58.5]} 2. Nf3 {[%clk 0:02:51]} 2...
d5 {[%clk 0:02:52.5]} 3. e5 {[%clk 0:02:50.1]} 3... Bg4 {[%clk 0:02:50.8]} 4. d4
{[%clk 0:02:49.8]} 4... Bxf3 {[%clk 0:02:49.7]} 5. Qxf3 {[%clk 0:02:50.7]} 5...
e6 {[%clk 0:02:49.1]} 6. Bd3 {[%clk 0:02:49.5]} 6... c5 {[%clk 0:02:35.2]} 7. c3
{[%clk 0:02:49.3]} 7... cxd4 {[%clk 0:02:34.4]} 8. cxd4 {[%clk 0:02:50.2]} 8...
Nc6 {[%clk 0:02:34.7]} 9. Be3 {[%clk 0:02:47.2]} 9... Bb4+ {[%clk 0:02:33.8]}
10. Nc3 {[%clk 0:02:33.9]} 10... Qa5 {[%clk 0:02:33]} 11. O-O {[%clk 0:02:33]}
11... Bxc3 {[%clk 0:02:32.1]} 12. bxc3 {[%clk 0:02:33.9]} 12... Qxc3 {[%clk
0:02:31.5]} 13. Qg3 {[%clk 0:02:25.4]} 13... Qxd3 {[%clk 0:02:27.9]} 14. Qxg7
{[%clk 0:02:24]} 14... O-O-O {[%clk 0:02:19]} 15. Qxh8 {[%clk 0:02:21]} 15...
Qg6 {[%clk 0:02:18.6]} 16. Rfc1 {[%clk 0:02:09.5]} 16... Kd7 {[%clk 0:02:15.7]}
17. Rab1 {[%clk 0:02:05.8]} 17... b6 {[%clk 0:02:12.5]} 18. Rb3 {[%clk
0:01:58.3]} 18... Nce7 {[%clk 0:01:30]} 19. Rbc3 {[%clk 0:01:48.8]} 19... b5
{[%clk 0:00:47.9]} 20. Rc7+ {[%clk 0:01:45.2]} 20... Ke8 {[%clk 0:00:47.2]} 21.
h4 {[%clk 0:01:29.5]} 21... Nf5 {[%clk 0:00:43.1]} 22. Bg5 {[%clk 0:01:27.9]}
22... Nxd4 {[%clk 0:00:20.2]} 23. Rc8 {[%clk 0:01:11.6]} 23... Rxc8 {[%clk
0:00:18.5]} 24. Rxc8+ {[%clk 0:01:09.7]} 24... Kd7 {[%clk 0:00:18.8]} 25. Qxg8
{[%clk 0:00:58.9]} 25... Ne2+ {[%clk 0:00:14.5]} 26. Kh2 {[%clk 0:00:55.4]}
26... Qxg8 {[%clk 0:00:08.9]} 27. Rxg8 {[%clk 0:00:56.3]} 27... d4 {[%clk
0:00:05]} 28. Rg7 {[%clk 0:00:52.2]} 1-0

[Event "Early-Titled-Tuesday-Blitz-March-12-2024"]
[Site "Chess.com"]
[Date "2024.03.12"]
[Round "1"]
[White "LiamPutnam2008"]
[Black "Shuvalov"]
[Result "0-1"]
[WhiteElo "2889"]
[BlackElo "2526"]
[TimeControl "180+1"]
[EndTime "8:06:23 PDT"]
[Termination "Shuvalov won by resignation"]

1. e4 {[%clk 0:03:00.9]} 1... e6 {[%clk 0:02:59.2]} 2. d4 {[%clk 0:03:00.1]}
2... d5 {[%clk 0:02:59.1]} 3. Nd2 {[%clk 0:02:54.5]} 3... c5 {[%clk 0:02:58.5]}
4. Ngf3 {[%clk 0:02:50.6]} 4... Nc6 {[%clk 0:02:58]} 5. exd5 {[%clk 0:02:46.7]}
5... exd5 {[%clk 0:02:57.7]} 6. Bb5 {[%clk 0:02:47.4]} 6... Qe7+ {[%clk
0:02:57.1]} 7. Kf1 {[%clk 0:02:41.4]} 7... Nf6 {[%clk 0:02:56.3]} 8. Ne5 {[%clk
0:02:25.4]} 8... Qc7 {[%clk 0:02:48.6]} 9. Ndf3 {[%clk 0:02:19.7]} 9... cxd4
{[%clk 0:02:43.9]} 10. Qxd4 {[%clk 0:01:56.2]} 10... Bd6 {[%clk 0:02:36.2]} 11.
Bf4 {[%clk 0:01:43.4]} 11... O-O {[%clk 0:02:32.2]} 12. Bxc6 {[%clk 0:01:39.7]}
12... bxc6 {[%clk 0:02:32.2]} 13. Nd3 {[%clk 0:01:27.2]} 13... Ba6 {[%clk
0:02:23.2]} 14. Bxd6 {[%clk 0:01:24.3]} 14... Qxd6 {[%clk 0:02:24.1]} 15. g3
{[%clk 0:01:22.8]} 15... Rfe8 {[%clk 0:02:19.4]} 16. Kg2 {[%clk 0:01:22.2]}
16... Ne4 {[%clk 0:02:09.3]} 17. Rhe1 {[%clk 0:01:11.4]} 17... c5 {[%clk
0:02:03]} 18. Qe3 {[%clk 0:01:11]} 18... Bb7 {[%clk 0:01:43.1]} 19. Qf4 {[%clk
0:01:02.1]} 19... Qb6 {[%clk 0:01:32.8]} 20. b3 {[%clk 0:00:53.3]} 20... f6
{[%clk 0:01:28]} 21. c4 {[%clk 0:00:45.1]} 21... d4 {[%clk 0:01:24]} 22. Kg1
{[%clk 0:00:42.5]} 22... Nc3 {[%clk 0:01:18.5]} 23. Rxe8+ {[%clk 0:00:24.7]}
23... Rxe8 {[%clk 0:01:19.4]} 24. Kg2 {[%clk 0:00:22.4]} 24... Qc6 {[%clk
0:01:15.6]} 25. Re1 {[%clk 0:00:21]} 25... Ne2 {[%clk 0:00:56]} 26. Qg4 {[%clk
0:00:14.8]} 26... g6 {[%clk 0:00:47.3]} 27. h4 {[%clk 0:00:15]} 27... f5 {[%clk
0:00:46.9]} 28. Qg5 {[%clk 0:00:04.7]} 28... Qxf3+ {[%clk 0:00:45.8]} 0-1

[Event "Early-Titled-Tuesday-Blitz-March-12-2024"]
[Site "Chess.com"]
[Date "2024.03.12"]
[Round "1"]
[White "Vladimir_Zakhartsov"]
[Black "Vasily85"]
[Result "1-0"]
[WhiteElo "2854"]
[BlackElo "2472"]
[TimeControl "180+1"]
[EndTime "8:06:29 PDT"]
[Termination "Vladimir_Zakhartsov won by resignation"]

1. d4 {[%clk 0:02:55.9]} 1... Nf6 {[%clk 0:02:58.6]} 2. c4 {[%clk 0:02:53.2]}
2... e6 {[%clk 0:02:59]} 3. Nf3 {[%clk 0:02:50.5]} 3... d5 {[%clk 0:02:54.2]} 4.
g3 {[%clk 0:02:50.3]} 4... Be7 {[%clk 0:02:51.9]} 5. Bg2 {[%clk 0:02:50.1]} 5...
O-O {[%clk 0:02:52.5]} 6. Nc3 {[%clk 0:02:50.1]} 6... dxc4 {[%clk 0:02:44]} 7.
Ne5 {[%clk 0:02:49.4]} 7... Nc6 {[%clk 0:02:43.7]} 8. Bxc6 {[%clk 0:02:49.3]}
8... bxc6 {[%clk 0:02:44.6]} 9. Nxc6 {[%clk 0:02:50.1]} 9... Qe8 {[%clk
0:02:43.9]} 10. Nxe7+ {[%clk 0:02:50]} 10... Qxe7 {[%clk 0:02:44.8]} 11. Qa4
{[%clk 0:02:50.5]} 11... c5 {[%clk 0:02:30.6]} 12. dxc5 {[%clk 0:02:50.6]} 12...
Qxc5 {[%clk 0:02:26]} 13. Be3 {[%clk 0:02:50.5]} 13... Qh5 {[%clk 0:02:23.3]}
14. f3 {[%clk 0:02:47.1]} 14... Nd5 {[%clk 0:02:18.3]} 15. Bd4 {[%clk
0:02:46.2]} 15... Nxc3 {[%clk 0:01:48.9]} 16. Bxc3 {[%clk 0:02:44.2]} 16... e5
{[%clk 0:01:20]} 17. Qxc4 {[%clk 0:02:35.5]} 17... Be6 {[%clk 0:01:20.7]} 18.
Qe4 {[%clk 0:02:16.2]} 18... f6 {[%clk 0:01:17.9]} 19. Kf2 {[%clk 0:02:15.6]}
19... Rfd8 {[%clk 0:01:14.2]} 20. h4 {[%clk 0:02:14.5]} 20... Qf7 {[%clk
0:01:11]} 21. a3 {[%clk 0:02:13.4]} 21... Bd5 {[%clk 0:01:10.4]} 22. Qe3 {[%clk
0:02:13.5]} 22... a5 {[%clk 0:01:07.6]} 23. g4 {[%clk 0:02:12.1]} 23... a4
{[%clk 0:01:07.2]} 24. g5 {[%clk 0:02:11.6]} 24... Kh8 {[%clk 0:01:03.2]} 25.
Rag1 {[%clk 0:02:07.3]} 25... Qa7 {[%clk 0:00:57.8]} 26. h5 {[%clk 0:02:01.8]}
26... Qxe3+ {[%clk 0:00:28]} 27. Kxe3 {[%clk 0:02:02.7]} 27... f5 {[%clk
0:00:15.4]} 28. Bxe5 {[%clk 0:02:00.4]} 28... Kg8 {[%clk 0:00:15.7]} 29. Kf4
{[%clk 0:01:55.2]} 29... Bc4 {[%clk 0:00:14.2]} 30. Rc1 {[%clk 0:01:48.4]} 30...
Bxe2 {[%clk 0:00:13.8]} 31. Rc7 {[%clk 0:01:48.1]} 31... Rd3 {[%clk 0:00:10.7]}
32. Rxg7+ {[%clk 0:01:48.3]} 32... Kf8 {[%clk 0:00:11.3]} 33. Rh3 {[%clk
0:01:48.6]} 33... Rc8 {[%clk 0:00:10.1]} 34. Rxh7 {[%clk 0:01:46.5]} 34... Rc4+
{[%clk 0:00:10.6]} 35. Kxf5 {[%clk 0:01:47.1]} 35... Bxf3 {[%clk 0:00:09.9]} 36.
Rxf3 {[%clk 0:01:26.8]} 36... Rxf3+ {[%clk 0:00:10.8]} 37. Kg6 {[%clk
0:01:27.5]} 37... Rc6+ {[%clk 0:00:10.4]} 38. Bf6 {[%clk 0:01:27.8]} 38... Ke8
{[%clk 0:00:10.2]} 39. h6 {[%clk 0:01:26]} 39... Rf2 {[%clk 0:00:08.5]} 40. Re7+
{[%clk 0:01:25.5]} 40... Kf8 {[%clk 0:00:08.5]} 41. h7 {[%clk 0:01:25.4]} 41...
Rh2 {[%clk 0:00:07.5]} 42. Ra7 {[%clk 0:01:23.5]} 42... Ke8 {[%clk 0:00:06.3]}
43. Kg7 {[%clk 0:01:20.6]} 1-0

[Event "Early-Titled-Tuesday-Blitz-March-12-2024"]
[Site "Chess.com"]
[Date "2024.03.12"]
[Round "1"]
[White "northridgehawk"]
[Black "GMG"]
[Result "1-0"]
[WhiteElo "2347"]
[BlackElo "2688"]
[TimeControl "180+1"]
[EndTime "8:06:36 PDT"]
[Termination "northridgehawk won on time"]

1. e4 {[%clk 0:03:00]} 1... c5 {[%clk 0:03:00.2]} 2. Nf3 {[%clk 0:03:00.1]} 2...
Nc6 {[%clk 0:03:00.8]} 3. d4 {[%clk 0:03:01]} 3... cxd4 {[%clk 0:03:01.7]} 4.
Nxd4 {[%clk 0:03:01.9]} 4... Nf6 {[%clk 0:03:02.3]} 5. Nc3 {[%clk 0:03:02.4]}
5... e5 {[%clk 0:03:03]} 6. Ndb5 {[%clk 0:03:01.6]} 6... d6 {[%clk 0:03:03.5]}
7. Bg5 {[%clk 0:03:00.5]} 7... a6 {[%clk 0:03:03.8]} 8. Na3 {[%clk 0:03:01.1]}
8... Be6 {[%clk 0:03:04.4]} 9. Nc4 {[%clk 0:02:59]} 9... Rb8 {[%clk 0:03:03.9]}
10. Ne3 {[%clk 0:02:59.4]} 10... Be7 {[%clk 0:03:03.7]} 11. Bxf6 {[%clk
0:02:58.8]} 11... Bxf6 {[%clk 0:03:04.6]} 12. Be2 {[%clk 0:02:59.2]} 12... O-O
{[%clk 0:02:57.7]} 13. O-O {[%clk 0:02:56.3]} 13... Bg5 {[%clk 0:02:55.8]} 14.
Ncd5 {[%clk 0:02:51.8]} 14... g6 {[%clk 0:02:43.3]} 15. a4 {[%clk 0:02:46.5]}
15... Kh8 {[%clk 0:02:38.4]} 16. Bc4 {[%clk 0:02:41.6]} 16... f5 {[%clk
0:02:21.1]} 17. exf5 {[%clk 0:02:41.3]} 17... gxf5 {[%clk 0:02:21.3]} 18. f4
{[%clk 0:02:41.7]} 18... Bh6 {[%clk 0:02:21.6]} 19. c3 {[%clk 0:02:40.9]} 19...
Rc8 {[%clk 0:02:15.2]} 20. Ba2 {[%clk 0:02:40.5]} 20... Bg7 {[%clk 0:02:14.6]}
21. Qd2 {[%clk 0:02:36.3]} 21... b5 {[%clk 0:01:47.8]} 22. axb5 {[%clk
0:02:36.7]} 22... axb5 {[%clk 0:01:48.7]} 23. Bb3 {[%clk 0:02:35]} 23... b4
{[%clk 0:01:48.2]} 24. Ba4 {[%clk 0:02:30.2]} 24... bxc3 {[%clk 0:01:46.8]} 25.
bxc3 {[%clk 0:02:31.1]} 25... Na5 {[%clk 0:01:45.8]} 26. Rad1 {[%clk 0:02:25.4]}
26... e4 {[%clk 0:01:38.5]} 27. Bb5 {[%clk 0:02:19.2]} 27... Rc5 {[%clk
0:01:29.2]} 28. c4 {[%clk 0:02:19.5]} 28... Nb3 {[%clk 0:01:27.6]} 29. Qb4
{[%clk 0:02:07.7]} 29... Nd4 {[%clk 0:01:27.7]} 30. Rf2 {[%clk 0:02:04.5]} 30...
Qb8 {[%clk 0:01:21.7]} 31. Nc3 {[%clk 0:01:53.1]} 31... Rfc8 {[%clk 0:01:07.4]}
32. Rfd2 {[%clk 0:01:53.1]} 32... Nxb5 {[%clk 0:00:59.7]} 33. Nxb5 {[%clk
0:01:52]} 33... Bxc4 {[%clk 0:00:58.4]} 34. Nxc4 {[%clk 0:01:45.8]} 34... Rxc4
{[%clk 0:00:57.9]} 35. Qb3 {[%clk 0:01:39.2]} 35... Qb6+ {[%clk 0:00:46.9]} 36.
Kh1 {[%clk 0:01:37.8]} 36... Bf8 {[%clk 0:00:43.7]} 37. Rd5 {[%clk 0:01:25.9]}
37... Qf2 {[%clk 0:00:09.3]} 38. Nxd6 {[%clk 0:01:07.8]} 1-0